lending/lending_fUSD_20240207
["ID","MTS","AMOUNT","RATE_DAILY","PERIOD"]
[313394656,1707282631735,-278.51882872,0.00030779,7]
[313394657,1707282631747,-276.96393968,0.00030779,7]
[313394658,1707282631757,-218.528043,0.00030779,6]
[313394659,1707282631769,-216.50025885,0.00030779,6]
[313394660,1707282631779,-690.80634951,0.00030779,2]
[313394661,1707282631791,-2896.40365049,0.00030779,2]
[313394662,1707282631801,-576.68179357,0.00030779,6]
[313394663,1707282631812,-229.4398134,0.00030779,6]
[313394664,1707282631821,-200.0,0.00030779,2]
[313394665,1707282631831,-176.88350218,0.00030873,4]
[313394666,1707282631841,-157.70463677,0.00031059,2]
[313394667,1707282631851,-205.19421441,0.0003124,2]
[313394670,1707282632032,-44.80578559,0.0003124,2]
[313394671,1707282632043,-168.87,0.00031279,2]
[313394672,1707282632058,-150.0,0.00031353,2]
[313394673,1707282632071,-615.68,0.00031506,2]
[313394674,1707282632083,-157.70463677,0.00031539,2]
[313394675,1707282632094,-2000.0,0.00031577,2]
[313394676,1707282632252,-590.76,0.00031646,2]
[313394677,1707282632262,-499.99,0.00031719,2]
[313394678,1707282632272,-3115.73541188,0.00031953,2]
[313394679,1707282632285,-249.83,0.00031957,2]
[313394680,1707282632294,-157.70463677,0.00032019,2]
[313394681,1707282632307,-2867.0,0.00032057,2]
[313394682,1707282632317,-442.573,0.00032057,2]
[313394683,1707282632326,-843.777,0.00032057,2]
[313394684,1707282632336,-852.0,0.00032057,2]
[313394685,1707282632346,-1233.0,0.00032057,2]
[313394686,1707282632356,-1001.0,0.00032057,2]
[313394687,1707282632369,-237.0,0.00032057,2]
[313394688,1707282632379,-315.659,0.00032057,2]
[313394689,1707282632389,-449.74,0.00032163,2]
[313394690,1707282632398,-384.32,0.00032231,2]
[313394691,1707282632409,-177.04,0.00032285,2]
[313394692,1707282632418,-503.10636395,0.00032285,2]
[313394693,1707282632428,-157.70463677,0.00032499,2]
[313394694,1707282632438,-165.75,0.00032547,2]
[313394695,1707282632448,-1251.14934527,0.00032701,2]
[313394696,1707282632458,-151.0207,0.00032748,2]
[313394697,1707282632467,-2308.671,0.00032825,2]
[313394698,1707282632476,-2947.777,0.00032825,2]
[313394699,1707282632486,-177.04,0.00032833,2]
[313394700,1707282632495,-151.0207,0.00032848,2]
[313394701,1707282632504,-500.0,0.000329,2]
[313394702,1707282632514,-151.0207,0.00032948,2]
[313394703,1707282632523,-282.08699412,0.0003295,2]
[313394704,1707282632532,-157.70463677,0.0003298,2]
[313394705,1707282632541,-1251.14934527,0.00033024,2]
[313394706,1707282632552,-151.0207,0.00033048,2]
[313394707,1707282632565,-642.7807,0.00033086,2]
[313394708,1707282632574,-608.3020559,0.00033092,6]
[313394709,1707282632584,-190.91405629,0.00033092,2]
[313394710,1707282632593,-151.0207,0.00033148,2]
[313394711,1707282632602,-155.0,0.00033175,2]
[313394712,1707282632611,-18751.07976248,0.00033176,5]
[313394713,1707282632624,-500.0,0.00033176,5]
[313394732,1707282637611,-484.03055086,0.00033176,5]
[313394766,1707282637964,-346.49127393,0.00033176,5]
[313394767,1707282640933,-500.0,0.00030779,2]
[313394768,1707282640943,-6526.26843595,0.00033176,5]
[313394769,1707282641046,-920.77149007,0.00033176,5]
[313394770,1707282641058,-347.49897256,0.00033176,5]
[313394773,1707282642578,-381.87407514,0.00033175,2]
[313394774,1707282642640,-1754.71748704,0.00033175,2]
[313394775,1707282642649,-20909.38389055,0.00033176,5]
[313394776,1707282642659,-100000.0,0.00033186,2]
[313394777,1707282642668,-245000.0,0.00033186,2]
[313394778,1707282642678,-9757.10487527,0.00033256,5]
[313394779,1707282642687,-3751.84993577,0.00033265,2]
[313394780,1707282642696,-29271.3146258,0.00033265,5]
[313394781,1707282642705,-5753.1227766,0.00033266,5]
[313394782,1707282642757,-353.659,0.00033266,5]
[313394790,1707282645556,-200.0,0.00030779,2]
[313394792,1707282645567,-500.0,0.00030779,2]
[313394794,1707282645576,-929.82428456,0.00032189,4]
[313394796,1707282645585,-5040.00600136,0.00033266,5]
[313394798,1707282645597,-466.70474391,0.00033266,5]
[313394801,1707282645615,-1423.82121865,0.00033266,5]
[313394803,1707282645626,-500.62895699,0.00033266,5]
[313394810,1707282645677,-5976.26705299,0.00033266,5]
[313394812,1707282645687,-8096.23790625,0.00033275,5]
[313394827,1707282645843,-382.98981488,0.00033275,5]
[313394832,1707282645885,-355.78380572,0.00033275,5]
[313394835,1707282645897,-328.53934177,0.00033275,5]
[313394838,1707282645908,-403.53386833,0.00033275,5]
[313394840,1707282645920,-649.64689608,0.00033275,5]
[313394843,1707282645932,-625.15762086,0.00033275,5]
[313394859,1707283751106,-155.97315112,0.00024972,2]
[313394860,1707283751127,-282.39511157,0.00024973,2]
[313394861,1707283751148,-1071.0,0.00024999,2]
[313394862,1707283751168,-350.0,0.00025,3]
[313394863,1707283751188,-168.08770905,0.00025,2]
[313394864,1707283751209,-153.35,0.000252,2]
[313394865,1707283751229,-6446.0,0.000268,2]
[313394866,1707283751250,-210.0,0.0002698,2]
[313394867,1707283751272,-400.0,0.00027,3]
[313394868,1707283751292,-150.0,0.00028999,2]
[313394869,1707283751317,-450.0,0.00029,3]
[313394870,1707283751336,-499.88,0.00029,2]
[313394871,1707283751357,-181.96168038,0.00029732,2]
[313394872,1707283751378,-162.25097554,0.00029955,2]
[313394873,1707283751399,-155.0,0.0003,2]
[313394874,1707283751421,-374.78,0.00030284,2]
[313394875,1707283751443,-1000.0,0.000303,2]
[313394876,1707283751464,-9370.16937234,0.00030325,2]
[313394877,1707283752099,-2155.69062766,0.00030325,2]
[313394878,1707283752120,-562.49,0.00030362,2]
[313394879,1707283752143,-250.0,0.00030371,2]
[313394880,1707283752165,-1065.03931007,0.00030396,2]
[313394881,1707283763104,-5641.07886171,0.00030396,2]
[313394882,1707283771098,-17183.88182822,0.00030396,2]
[313394883,1707283771119,-231.17,0.00030408,2]
[313394884,1707283771140,-205.32,0.00030411,10]
[313394885,1707283771161,-200.0,0.0003043,2]
[313394886,1707283771183,-168.87,0.00030436,2]
[313394887,1707283771203,-500.0,0.00030436,2]
[313394888,1707283771223,-230.23,0.00030474,2]
[313394889,1707283771243,-1218.37,0.00030486,2]
[313394890,1707283771264,-198.09,0.00030561,2]
[313394891,1707283771284,-5828.72,0.00030732,2]
[313394892,1707283771305,-150.1,0.00030735,2]
[313394893,1707283771324,-295.704,0.00030735,2]
[313394894,1707283771346,-462.29712546,0.00030779,6]
[313394895,1707283771368,-271.44303811,0.00030779,5]
[313394896,1707283771390,-108.04700821,0.00030779,5]
[313394897,1707283772114,-183.98546992,0.00030779,5]
[313394898,1707283772136,-261.19500505,0.00030779,5]
[313394899,1707283772159,-335.92686823,0.00030779,6]
[313394900,1707283772182,-387.3526568,0.00030779,7]
[313394903,1707283831710,-200.0,0.00030396,2]
[313394904,1707283831719,-500.0,0.00030396,2]
[313394905,1707283831727,-321.05941558,0.00030396,2]
[313394906,1707283831739,-564.28815814,0.00030396,2]
[313394907,1707283831750,-4755.73128799,0.00030396,2]
[313394908,1707283831758,-150.0,0.00030778,2]
[313394909,1707283831766,-150.0,0.00030778,2]
[313394910,1707283831778,-612.6473432,0.00030779,7]
[313394911,1707283831787,-180.17043213,0.00030779,5]
[313394912,1707283831796,-1000.0,0.00030779,7]
[313394913,1707283831804,-293.02016649,0.00030779,6]
[313394914,1707283831812,-1000.0,0.00030779,7]
[313394915,1707283831821,-1000.0,0.00030779,7]
[313394916,1707283831829,-150.1,0.00030881,2]
[313394917,1707283831838,-500.0,0.00030897,2]
[313394918,1707283831846,-250.0,0.00030916,2]
[313394919,1707283831854,-150.0,0.00030958,2]
[313394920,1707283831862,-500.0,0.00031,3]
[313394921,1707283831870,-150.1,0.00031027,2]
[313394922,1707283831878,-150.1,0.00031172,2]
[313394923,1707283831887,-165.96,0.00031202,2]
[313394924,1707283831895,-174.01,0.00031286,2]
[313394925,1707283831904,-150.1,0.00031318,2]
[313394926,1707283831912,-150.1,0.00031463,2]
[313394927,1707283831920,-590.44,0.0003153,2]
[313394928,1707283831928,-150.1,0.00031609,2]
[313394929,1707283831937,-538.96883302,0.00031611,2]
[313394930,1707283831945,-150.1,0.00031755,2]
[313394931,1707283831954,-150.1,0.000319,2]
[313394932,1707283831962,-4000.0,0.00032,2]
[313394933,1707283831970,-150.1,0.00032046,2]
[313394934,1707283831978,-150.1,0.00032191,2]
[313394935,1707283831986,-220.50949561,0.00032285,4]
[313394936,1707283831995,-150.1,0.00032337,2]
[313394937,1707283832003,-1140.51565699,0.00032628,2]
[313394938,1707283832011,-304.16498236,0.0003284,4]
[313394939,1707283832020,-174.01,0.00032851,2]
[313394940,1707283832028,-500.0,0.000329,2]
[313394941,1707283832037,-151.0207,0.00032948,2]
[313394942,1707283832045,-249.06985904,0.0003295,4]
[313394943,1707283832054,-550.0,0.00033,3]
[313394944,1707283832062,-1000.0,0.00033,2]
[313394945,1707283832071,-151.0207,0.00033048,2]
[313394946,1707283832080,-104.54573712,0.00033074,2]
[313394947,1707283832098,-633.05082399,0.00033074,2]
[313394948,1707283832110,-302.63473889,0.00033074,2]
[313394949,1707283832119,-273.2233,0.00033074,2]
[313394950,1707283832129,-156.53434898,0.00033083,4]
[313394951,1707283832138,-2282.0,0.00033084,2]
[313394952,1707283832147,-2917.0,0.00033084,2]
[313394954,1707283832156,-839.0,0.00033084,2]
[313394955,1707283832165,-2049.28281056,0.00033084,2]
[313394958,1707283832177,-389.81167713,0.00033084,2]
[313394960,1707283832197,-346.80171835,0.00033084,2]
[313394962,1707283832209,-81.10379396,0.00033084,2]
[313394964,1707283832218,-991.666,0.00033084,2]
[313394966,1707283832227,-1140.51565699,0.00033084,2]
[313394968,1707283832236,-4352.50436359,0.00033085,2]
[313394970,1707283832252,-9836.68309227,0.00033085,2]
[313394991,1707283837833,-1972.26398531,0.00030779,2]
[313394993,1707283837842,-198.09,0.00032315,2]
[313394995,1707283837851,-6047.12174414,0.00033085,2]
[313394996,1707283837861,-151.0207,0.00033148,2]
[313394998,1707283837870,-155.0,0.00033173,2]
[313395000,1707283837879,-168.61538491,0.00033173,4]
[313395001,1707283837889,-500.0,0.00033174,2]
[313395003,1707283837898,-24387.06919472,0.00033174,2]
[313395004,1707283837909,-1257.66957467,0.00033174,2]
[313395005,1707283837920,-843.85681644,0.00033174,2]
[313395006,1707283837946,-415.81561062,0.00033174,2]
[313395156,1707283840480,-150.737,0.00033084,2]
[313395157,1707283840489,-65815.95180355,0.00033174,2]
[313395158,1707283840498,-62397.5732,0.00033185,2]
[313395159,1707283840508,-1000.0,0.00033185,2]
[313395160,1707283840517,-567.37074429,0.00033186,2]
[313395161,1707283840526,-151.0207,0.00033248,2]
[313395162,1707283840535,-17955.0070875,0.00033254,5]
[313395163,1707283840543,-66420.98639592,0.00033264,5]
[313395164,1707283840555,-8297.88062454,0.00033264,5]
[313395165,1707283840612,-10956.515,0.00033264,5]
[313395166,1707283840654,-541.4572288,0.00033264,5]
[313395169,1707283842730,-368.53269329,0.00033084,2]
[313395171,1707283842844,-318.0,0.00032901,2]
[313395172,1707283842854,-61.71830671,0.00033084,2]
[313395173,1707283842863,-21513.20327574,0.00033264,5]
[313395174,1707283842873,-160.88585138,0.00033264,2]
[313395175,1707283842882,-8977.50354375,0.00033264,5]
[313395176,1707283842891,-26932.5106312,0.00033265,5]
[313395177,1707283842901,-8977.50354375,0.00033265,5]
[313395178,1707283842910,-8977.50354375,0.00033273,5]
[313395179,1707283842919,-3197.82550138,0.00033274,2]
[313395180,1707283842929,-155.46646677,0.00033274,4]
[313395181,1707283842938,-305.83501881,0.00033274,4]
[313395182,1707283842947,-50085.65321016,0.00033274,2]
[313395183,1707283842960,-347.18442988,0.00033274,2]
[313395184,1707283842972,-3666.03223606,0.00033274,2]
[313395185,1707283842984,-16070.47370179,0.00033274,2]
[313395186,1707283843981,-200.0,0.00030779,2]
[313395187,1707283843990,-200.30481951,0.00033274,2]
[313395188,1707283844002,-405.20000741,0.00033274,2]
[313395189,1707283844014,-500.0,0.00033274,2]
[313395248,1707284277266,919.77578726,0.00027,30]
[313395257,1707284826101,-350.0,0.00025,3]
[313395258,1707284826123,-151.45527493,0.00026,2]
[313395259,1707284826145,-89.10687757,0.00026,2]
[313395260,1707284946206,-61.3599449,0.00026,2]
[313395261,1707284946227,-200.0,0.00026,2]
[313395262,1707284946247,-233.2680967,0.00026,2]
[313395263,1707284973107,-277.87306341,0.00026,2]
[313395264,1707284973127,-200.0,0.00026,2]
[313395265,1707284973146,-150.0,0.000262,2]
[313395266,1707284973165,-1873.0,0.000268,2]
[313395267,1707284973185,-732.3,0.000268,2]
[313395268,1707284973206,-155.0279318,0.000269,2]
[313395269,1707284973225,-5801.0,0.000269,2]
[313395270,1707284973245,-400.0,0.00027,3]
[313395271,1707284973265,-155.0279317,0.00027371,2]
[313395272,1707284973285,-155.0279317,0.00027841,2]
[313395273,1707284973304,-155.0279317,0.00028312,2]
[313395274,1707284973323,-155.0279317,0.00028782,2]
[313395275,1707284973343,-450.0,0.00029,3]
[313395276,1707284973362,-155.0279317,0.00029253,2]
[313395277,1707284973382,-322.94,0.00029513,2]
[313395278,1707284973403,-155.0279317,0.00029724,2]
[313395279,1707284973422,-804.27936414,0.0003,4]
[313395280,1707284973442,-155.0279317,0.00030194,2]
[313395281,1707284973462,-198.09,0.00030575,2]
[313395282,1707284973482,-355.73,0.000306,2]
[313395283,1707284973500,-218.62,0.0003064,2]
[313395284,1707284973523,-155.0279317,0.00030665,2]
[313395285,1707284973541,-294.4245,0.00030679,2]
[313395286,1707284973561,-150.0,0.00030681,2]
[313395287,1707284973580,-250.0,0.00030701,2]
[313395288,1707284973601,-1228.37,0.00030722,2]
[313395289,1707284973621,-515.90236884,0.00030779,5]
[313395290,1707284973642,-491.38341829,0.00030779,6]
[313395291,1707284973663,-270.26088006,0.00030779,5]
[313395292,1707284973683,-201.1054487,0.00030779,6]
[313395293,1707284973705,-409.58809063,0.00030779,6]
[313395294,1707284973725,-262.8346039,0.00030779,6]
[313395295,1707284973746,-243.47880441,0.00030779,6]
[313395296,1707284973767,-255.67476992,0.00030779,6]
[313395297,1707284973788,-2800.79851614,0.00030779,6]
[313395304,1707285031871,-200.0,0.00026,2]
[313395305,1707285031881,-312.31,0.0003066,2]
[313395306,1707285031892,-249.44219466,0.00030779,6]
[313395307,1707285031902,-297.60903344,0.00030779,5]
[313395308,1707285032094,-147.38926513,0.00030779,5]
[313395309,1707285032106,-62.15656762,0.00030779,5]
[313395310,1707285032115,-1170.62277334,0.00030788,2]
[313395311,1707285032127,-525.01690073,0.00030788,2]
[313395312,1707285032194,-1086.69258254,0.00030788,2]
[313395313,1707285032210,-689.30241408,0.00030788,2]
[313395322,1707285038155,-1000.0,0.00030779,7]
[313395323,1707285038164,-725.061895,0.00030788,2]
[313395324,1707285038207,-631.57539265,0.00030788,2]
[313395325,1707285038268,-423.67561566,0.00030788,2]
[313395326,1707285038279,-477.66470947,0.00030788,2]
[313395327,1707285038291,-600.0,0.00030788,2]
[313395328,1707285038323,-2150.16565339,0.00030788,2]
[313395329,1707285038334,-931.94447885,0.00030788,2]
[313395342,1707285041151,-3598.92758429,0.00030788,2]
[313395343,1707285041161,-800.0,0.00030891,2]
[313395344,1707285041171,-250.0,0.00030894,2]
[313395345,1707285041180,-4130.2348,0.00030927,2]
[313395346,1707285041190,-500.0,0.00031,3]
[313395347,1707285041199,-210.0,0.00031235,2]
[313395348,1707285041208,-205.32,0.00031585,10]
[313395349,1707285041218,-168.87,0.00031668,2]
[313395350,1707285041227,-154.69,0.00031693,2]
[313395351,1707285041237,-322.94,0.00031777,2]
[313395352,1707285041246,-158.53,0.00031838,2]
[313395353,1707285041256,-200.0,0.00031884,2]
[313395354,1707285041265,-593.94054867,0.00032,2]
[313395355,1707285041274,-355.73,0.0003213,2]
[313395356,1707285041284,-154.69,0.00032243,2]
[313395357,1707285041293,-1228.37,0.00032366,2]
[313395358,1707285041302,-154.69,0.00032794,2]
[313395359,1707285041311,-700.0,0.000329,12]
[313395360,1707285041320,-500.0,0.000329,2]
[313395361,1707285041329,-839.0,0.00032911,2]
[313395362,1707285041338,-2750.138,0.00032911,2]
[313395363,1707285041347,-342.0,0.00032911,2]
[313395364,1707285041357,-1293.877,0.00032911,2]
[313395365,1707285041365,-150.764,0.00032911,2]
[313395366,1707285041374,-150.0,0.00032911,2]
[313395367,1707285041383,-2083.772,0.00032911,2]
[313395368,1707285041393,-150.506,0.00032911,2]
[313395369,1707285041402,-150.984,0.00032911,2]
[313395370,1707285041410,-150.0,0.00032911,2]
[313395371,1707285041424,-150.444,0.00032911,2]
[313395372,1707285041433,-1889.27771131,0.00032963,2]
[313395373,1707285041443,-19621.0867,0.00032973,2]
[313395374,1707285041452,-322.1949,0.00032974,2]
[313395375,1707285041462,-532.26429893,0.00032974,6]
[313395376,1707285041471,-550.0,0.00033,3]
[313395377,1707285041480,-54239.1556454,0.00033064,5]
[313395378,1707285041490,-197.98396533,0.00033064,2]
[313395379,1707285041500,-155.0,0.00033072,4]
[313395380,1707285041510,-1047.52615169,0.00033072,2]
[313395381,1707285041519,-93411.44750814,0.00033073,2]
[313395382,1707285041535,-251.04163912,0.00033073,2]
[313395383,1707285041548,-793.57873986,0.00033073,2]
[313395384,1707285041563,-372.03993255,0.00033073,2]
[313395395,1707285042992,-4150.06201756,0.00033073,2]
[313395396,1707285043003,-4474.55107622,0.00033073,2]
[313395397,1707285043048,-651.01243477,0.00033073,2]
[313395398,1707285043064,-1210.36080118,0.00033073,2]
[313395399,1707285043108,-572.09977409,0.00033073,2]
[313395400,1707285043121,-702.38304042,0.00033073,2]
[313395401,1707285043133,-1525.57672096,0.00033073,2]
[313395402,1707285043146,-291.23162982,0.00033073,2]
[313395403,1707285043158,-432.0,0.00033073,2]
[313395404,1707285043171,-291.54261569,0.00033073,2]
[313395405,1707285043192,-150.0,0.000277,2]
[313395406,1707285043201,-63154.95210421,0.00033073,2]
[313395407,1707285043211,-79214.64829616,0.00033074,2]
[313395408,1707285043296,-2390.5060322,0.00033074,2]
[313395423,1707285113655,1351.56121703,0.00015,10]
[313395424,1707285877858,-1298.35928007,0.000229,2]
[313395425,1707286035095,-152.62045316,0.000229,2]
[313395426,1707286049096,-1138.07903293,0.000229,2]
[313395427,1707286049116,-856.190007,0.000229,4]
[313395428,1707286049135,-300.0,0.000259,2]
[313395429,1707286049155,-210.0,0.00027,2]
[313395430,1707286049174,-233.76,0.000277,2]
[313395431,1707286049195,-316.95,0.00029188,2]
[313395432,1707286049215,-155.0,0.0003,2]
[313395433,1707286049238,-258.0418175,0.00030779,5]
[313395434,1707286049259,-3612.70579876,0.00030779,5]
[313395435,1707286165101,-656.85052645,0.000229,4]
[313395436,1707286172080,-1384.3817,0.00030679,2]
[313395437,1707286172103,-847.80260954,0.00030779,5]
[313395438,1707286172125,-307.67344838,0.00030779,5]
[313395439,1707286227085,162.25097554,0.00029674,2]
[313395454,1707286232143,-156.09926764,0.00030679,2]
[313395455,1707286232154,-1152.07622175,0.00030777,2]
[313395456,1707286232212,-1551.3809245,0.00030777,2]
[313395457,1707286232222,-155.0,0.00030778,2]
[313395458,1707286232231,-231.81028998,0.00030779,5]
[313395459,1707286232241,-251.97418692,0.00030779,5]
[313395460,1707286232250,-1000.0,0.00030779,7]
[313395461,1707286232259,-191.01611789,0.00030779,5]
[313395462,1707286232268,-347.33,0.00030779,2]
[313395463,1707286232277,-211.11399347,0.00030779,5]
[313395464,1707286232286,-194.87034045,0.00030779,5]
[313395465,1707286232295,-236.55114351,0.00030779,5]
[313395466,1707286232304,-1088.23403293,0.00030779,5]
[313395467,1707286232473,-492.21325743,0.00030779,5]
[313395472,1707286232508,-271.29633934,0.00030779,5]
[313395474,1707286232517,-284.49703418,0.00030779,2]
[313395476,1707286232529,-1687.76695113,0.00030779,2]
[313395478,1707286232538,-1000.0,0.00030779,7]
[313395480,1707286232548,-337.62036546,0.00030779,2]
[313395482,1707286232559,-1934.24120179,0.00030779,2]
[313395484,1707286232571,-3369.21729446,0.00030779,2]
[313395486,1707286232581,-200.0,0.00030779,2]
[313395488,1707286232590,-1328.70720926,0.00030779,5]
[313395490,1707286232600,-233.2680967,0.00030779,4]
[313395492,1707286232609,-156.09926764,0.00030901,2]
[313395495,1707286232619,-260.25,0.00031075,2]
[313395496,1707286232629,-818.91,0.00031077,2]
[313395498,1707286232638,-753.37333201,0.00031116,7]
[313395500,1707286232649,-284.72736181,0.00031116,7]
[313395522,1707286238731,-694.99088532,0.00030678,4]
[313395524,1707286238741,-174.204573,0.0003096,2]
[313395526,1707286238750,-461.89930618,0.00031116,7]
[313395528,1707286238759,-156.09926764,0.00031123,2]
[313395530,1707286238768,-213.43,0.00031162,2]
[313395532,1707286238777,-150.0,0.00031163,2]
[313395534,1707286238787,-640.0,0.00031221,2]
[313395536,1707286238796,-156.09926764,0.00031345,2]
[313395538,1707286238806,-316.95,0.00031452,2]
[313395540,1707286238815,-1348.52222081,0.00031463,2]
[313395541,1707286238831,-636.64701375,0.00031463,2]
[313395549,1707286241611,-21914.83076544,0.00031463,2]
[313395550,1707286241621,-156.09926764,0.00031568,2]
[313395551,1707286241630,-166.28,0.00031616,2]
[313395552,1707286241639,-158.54,0.00031642,2]
[313395553,1707286241649,-250.0,0.00031754,2]
[313395554,1707286241660,-156.09926764,0.0003179,2]
[313395556,1707286241669,-360.0,0.00031824,2]
[313395558,1707286241679,-156.09926764,0.00032012,2]
[313395559,1707286241688,-154.69,0.00032027,2]
[313395560,1707286241698,-156.09926764,0.00032234,2]
[313395561,1707286241706,-156.09926764,0.00032456,2]
[313395562,1707286241715,-2282.0,0.00032479,2]
[313395563,1707286241724,-2918.0,0.00032479,2]
[313395564,1707286241734,-153.46008002,0.00032641,14]
[313395565,1707286241743,-282.39511157,0.00032641,4]
[313395566,1707286241752,-156.09926764,0.00032678,2]
[313395567,1707286241761,-10044.81092461,0.00032709,2]
[313395568,1707286241771,-213.43,0.0003272,2]
[313395569,1707286241781,-818.91,0.00032721,2]
[313395570,1707286241790,-150.0,0.00032859,2]
[313395571,1707286241800,-500.0,0.000329,2]
[313395572,1707286241809,-2867.0,0.00032911,2]
[313395573,1707286241818,-168.08770905,0.00032971,4]
[313395574,1707286241828,-155.97315112,0.00032972,4]
[313395575,1707286241838,-18911.8268835,0.00032973,2]
[313395583,1707286243091,-415.21587112,0.00032973,2]
[313395584,1707286243147,-666.41,0.00032973,2]
[313395585,1707286243158,-636.88921262,0.00032973,2]
[313395586,1707286243169,-1560.0,0.00032973,2]
[313395587,1707286243181,-2172.25771036,0.00032973,2]
[313395588,1707286243194,-6855.90067227,0.00032973,2]
[313395589,1707286243217,-2278.81377185,0.00032973,2]
[313395590,1707286243231,-8080.28742592,0.00032973,2]
[313395591,1707286243243,-926.38502705,0.00032973,2]
[313395592,1707286243254,-479.77960225,0.00032973,2]
[313395593,1707286243266,-836.39147061,0.00032973,2]
[313395594,1707286243285,-4824.07128542,0.00032973,2]
[313395595,1707286243315,-937.480368,0.00032973,2]
[313395596,1707286243371,-9484.42622168,0.00032973,2]
[313395597,1707286243383,-338.20311739,0.00032973,2]
[313395616,1707286246175,-1500.0,0.00031116,2]
[313395637,1707287345206,-1071.0,0.00024899,2]
[313395638,1707287345227,-3573.92552262,0.000249,2]
[313395639,1707287345247,-158.05873992,0.000249,2]
[313395640,1707287345267,-350.0,0.00025,3]
[313395641,1707287345288,-158.05873982,0.00025488,2]
[313395642,1707287345308,-158.05873982,0.00026076,2]
[313395643,1707287345327,-158.05873982,0.00026665,2]
[313395644,1707287345346,-400.0,0.00027,3]
[313395645,1707287345365,-158.05873982,0.00027253,2]
[313395646,1707287345385,-1878.0,0.000277,2]
[313395647,1707287345404,-6529.0,0.000277,2]
[313395648,1707287345424,-158.05873982,0.00027841,2]
[313395649,1707287345444,-158.05873982,0.00028429,2]
[313395650,1707287345464,-361.7,0.00028635,2]
[313395651,1707287345483,-200.0,0.00028987,2]
[313395652,1707287345503,-450.0,0.00029,3]
[313395653,1707287345523,-158.05873982,0.00029018,2]
[313395654,1707287345542,-200.0,0.00029057,2]
[313395655,1707287345561,-500.0,0.00029162,2]
[313395656,1707287345580,-129894.72494817,0.00029177,2]
[313395657,1707287345600,-10955.19961055,0.00029178,2]
[313395672,1707287434464,-689.64,0.00027841,2]
[313395673,1707287434477,-55.71826249,0.00029177,2]
[313395674,1707287434519,-94.28173751,0.00029177,2]
[313395675,1707287434529,-12944.80038945,0.00029178,2]
[313395676,1707287434540,-150.0,0.0002922,2]
[313395677,1707287434550,-158.05873982,0.00029606,2]
[313395678,1707287434559,-712.0,0.00029912,2]
[313395679,1707287434569,-184.39,0.00029957,2]
[313395680,1707287434578,-499.99,0.0003,2]
[313395681,1707287434587,-155.0,0.0003,2]
[313395682,1707287434597,-1500.0,0.00030137,7]
[313395683,1707287434606,-150.99,0.00030137,2]
[313395684,1707287434615,-2000.0,0.00030155,2]
[313395685,1707287434625,-158.05873982,0.00030194,2]
[313395686,1707287434634,-231.17,0.00030203,2]
[313395687,1707287434643,-259.71,0.00030218,2]
[313395688,1707287434653,-150.0,0.00030218,2]
[313395689,1707287434662,-167.61,0.00030362,2]
[313395690,1707287434671,-690.18,0.00030478,2]
[313395691,1707287434681,-11471.62,0.00030483,2]
[313395692,1707287434690,-249.97,0.00030514,2]
[313395693,1707287434699,-288.0,0.00030519,2]
[313395694,1707287434709,-250.0,0.00030536,2]
[313395695,1707287434719,-1852.42,0.00030564,2]
[313395696,1707287434728,-250.0,0.00030566,2]
[313395697,1707287434737,-818.01,0.00030581,2]
[313395698,1707287434748,-216.87,0.00030612,2]
[313395701,1707287434760,-500.0,0.00030683,2]
[313395706,1707287434772,-733.0,0.00030778,2]
[313395709,1707287434782,-1839.98932565,0.00030779,6]
[313395712,1707287434791,-402.43608262,0.00030779,6]
[313395714,1707287434801,-1000.0,0.00030779,7]
[313395716,1707287434810,-170.99577455,0.00030779,6]
[313395718,1707287434820,-2321.2680654,0.00030779,6]